fUSD/lending_fUSD_20260505
["ID","MTS","AMOUNT","RATE_DAILY","PERIOD"]
[421603805,1777939837000,-2486.78,0.00047699,120]
[421603809,1777939837000,-2486.93506699,0.00047699,120]
[421603811,1777939837000,-541.63416527,0.00047699,120]
[421603807,1777939837000,-2486.78,0.00047699,120]
[421603806,1777939837000,-2486.78,0.00047699,120]
[421603810,1777939837000,-3203.15,0.00047699,120]
[421603813,1777939837000,-3203.15,0.00047699,120]
[421603803,1777939837000,-2486.78,0.00047699,120]
[421603812,1777939837000,-2661.51583473,0.00047699,120]
[421603798,1777939837000,-215.50990502,0.00047682,120]
[421603784,1777939837000,-4184.22020663,0.0004756,73]
[421603790,1777939837000,-920.30101493,0.000476,2]
[421603780,1777939837000,-255.57754063,0.000475,21]
[421603739,1777939837000,-805.48,0.00047443,2]
[421603751,1777939837000,-500.0,0.00047443,120]
[421603753,1777939837000,-500.0,0.00047443,120]
[421603758,1777939837000,-334.03288513,0.00047443,120]
[421603754,1777939837000,-500.0,0.00047443,120]
[421603755,1777939837000,-286.83274318,0.00047443,120]
[421603782,1777939837000,-169.68,0.000475,14]
[421603757,1777939837000,-500.0,0.00047443,120]
[421603761,1777939837000,-500.0,0.00047443,120]
[421603752,1777939837000,-500.0,0.00047443,120]
[421603765,1777939837000,-27539.65735577,0.00047444,30]
[421603763,1777939837000,-591825.00899856,0.00047444,30]
[421603764,1777939837000,-212637.99354567,0.00047444,30]
[421603766,1777939837000,-150.0,0.00047444,30]
[421603759,1777939837000,-500.0,0.00047443,120]
[421603778,1777939837000,-52000.0,0.000475,31]
[421603769,1777939837000,-513.54423218,0.0004745,120]
[421603808,1777939837000,-2486.78,0.00047699,120]
[421603779,1777939837000,-150.0,0.000475,120]
[421603781,1777939837000,-2500.0,0.000475,120]
[421603777,1777939837000,-500.0,0.00047499,120]
[421603768,1777939837000,-276.0,0.00047444,30]
[421603775,1777939837000,-200.0,0.00047489,120]
[421603772,1777939837000,-254.516028,0.00047472,2]
[421603774,1777939837000,-400.48767111,0.00047473,2]
[421603770,1777939837000,-155.0,0.00047464,120]
[421603767,1777939837000,-150.0,0.00047444,30]
[421603776,1777939837000,-805.48,0.00047499,2]
[421603773,1777939837000,-2888.16125818,0.00047472,2]
[421603771,1777939837000,-164.0,0.00047465,120]
[421603824,1777939838000,-281.56110196,0.00047699,120]
[421603837,1777939838000,-500.0,0.00047699,120]
[421603835,1777939838000,-250.56110196,0.00047699,120]
[421603833,1777939838000,-1501.56503266,0.0002848,2]
[421603822,1777939838000,-1254.41808677,0.00047699,120]
[421603831,1777939838000,-312.7,0.0002848,2]
[421603829,1777939838000,-648.73496734,0.0002848,2]
[421603816,1777939838000,-3203.15,0.00047699,120]
[421603820,1777939838000,-1667.22081127,0.00047699,120]
[421603826,1777939838000,-249.43889804,0.00047699,120]
[421603818,1777939838000,-3203.15,0.00047699,120]
[421603817,1777939838000,-3203.15,0.00047699,120]
[421603815,1777939838000,-3203.15,0.00047699,120]
[421603814,1777939838000,-3203.15,0.00047699,120]
[421603819,1777939838000,-3203.15,0.00047699,120]
[421603839,1777939838000,-856.63,0.00047699,120]
[421603845,1777939838000,-856.63,0.00047699,120]
[421603843,1777939838000,-856.63,0.00047699,120]
[421603841,1777939838000,-856.63,0.00047699,120]
[421603915,1777939838000,-500.0,0.00013631,2]
[421603920,1777939838000,-500.0,0.00013631,2]
[421603918,1777939838000,-500.0,0.00013631,2]
[421603917,1777939838000,-500.0,0.00013631,2]
[421603919,1777939838000,-500.0,0.00013631,2]
[421603916,1777939838000,-500.0,0.00013631,2]
[421603921,1777939838000,-500.0,0.00013631,2]
[421603912,1777939838000,-426.61846658,0.00013631,2]
[421603913,1777939838000,-73.38153342,0.00013631,2]
[421603855,1777939838000,-643.75364431,0.00047699,120]
[421603853,1777939838000,-248.8710667,0.00047699,120]
[421603851,1777939838000,-607.7589333,0.00047699,120]
[421603849,1777939838000,-239.51946841,0.00047699,120]
[421603914,1777939838000,-500.0,0.00013631,2]
[421603847,1777939838000,-617.11053159,0.00047699,120]
[421603962,1777939839000,-500.0,0.00013699,2]
[421603961,1777939839000,-500.0,0.00013699,2]
[421603956,1777939839000,-500.0,0.00013631,2]
[421603960,1777939839000,-500.0,0.00013699,2]
[421603989,1777939839000,-500.0,0.00013699,2]
[421603954,1777939839000,-500.0,0.00013631,2]
[421603958,1777939839000,-500.0,0.00013631,2]
[421603952,1777939839000,-500.0,0.00013631,2]
[421603955,1777939839000,-500.0,0.00013631,2]
[421603980,1777939839000,-500.0,0.00013699,2]
[421603957,1777939839000,-500.0,0.00013631,2]
[421603965,1777939839000,-500.0,0.00013699,2]
[421603971,1777939839000,-500.0,0.00013699,2]
[421603977,1777939839000,-500.0,0.00013699,2]
[421603976,1777939839000,-500.0,0.00013699,2]
[421603978,1777939839000,-500.0,0.00013699,2]
[421603969,1777939839000,-500.0,0.00013699,2]
[421603967,1777939839000,-500.0,0.00013699,2]
[421603975,1777939839000,-500.0,0.00013699,2]
[421603963,1777939839000,-500.0,0.00013699,2]
[421603970,1777939839000,-500.0,0.00013699,2]
[421603973,1777939839000,-500.0,0.00013699,2]
[421603972,1777939839000,-500.0,0.00013699,2]
[421603981,1777939839000,-500.0,0.00013699,2]
[421603992,1777939839000,-500.0,0.00013699,2]
[421603988,1777939839000,-500.0,0.00013699,2]
[421603979,1777939839000,-500.0,0.00013699,2]
[421603953,1777939839000,-500.0,0.00013631,2]
[421603944,1777939839000,-500.0,0.00013631,2]
[421603946,1777939839000,-500.0,0.00013631,2]
[421603924,1777939839000,-500.0,0.00013631,2]
[421603922,1777939839000,-500.0,0.00013631,2]
[421603923,1777939839000,-500.0,0.00013631,2]
[421603925,1777939839000,-500.0,0.00013631,2]
[421603928,1777939839000,-500.0,0.00013631,2]
[421603929,1777939839000,-500.0,0.00013631,2]
[421603926,1777939839000,-500.0,0.00013631,2]
[421603932,1777939839000,-500.0,0.00013631,2]
[421603937,1777939839000,-500.0,0.00013631,2]
[421603938,1777939839000,-500.0,0.00013631,2]
[421603933,1777939839000,-500.0,0.00013631,2]
[421603930,1777939839000,-386.61846658,0.00013631,2]
[421603934,1777939839000,-500.0,0.00013631,2]
[421603935,1777939839000,-500.0,0.00013631,2]
[421603931,1777939839000,-113.38153342,0.00013631,2]
[421603927,1777939839000,-500.0,0.00013631,2]
[421603936,1777939839000,-500.0,0.00013631,2]
[421603939,1777939839000,-500.0,0.00013631,2]
[421603941,1777939839000,-500.0,0.00013631,2]
[421603951,1777939839000,-500.0,0.00013631,2]
[421603940,1777939839000,-500.0,0.00013631,2]
[421603950,1777939839000,-500.0,0.00013631,2]
[421603942,1777939839000,-500.0,0.00013631,2]
[421603943,1777939839000,-500.0,0.00013631,2]
[421603948,1777939839000,-321.09208103,0.00013631,2]
[421603947,1777939839000,-500.0,0.00013631,2]
[421603945,1777939839000,-500.0,0.00013631,2]
[421603949,1777939839000,-500.0,0.00013631,2]
[421603984,1777939839000,-500.0,0.00013699,2]
[421603959,1777939839000,-500.0,0.00013699,2]
[421603993,1777939839000,-196.25659963,0.00013699,2]
[421604022,1777939839000,-247.15,0.00043,120]
[421604024,1777939839000,-1431.18218495,0.00043,120]
[421604027,1777939839000,-1117.40781505,0.0004348,2]
[421604025,1777939839000,-881.42,0.00043,120]
[421604026,1777939839000,-2430.99,0.00043,120]
[421604023,1777939839000,-4260.07781505,0.00043,120]
[421604028,1777939839000,-285.8,0.00024658,2]
[421604029,1777939839000,-285.8,0.00024946,7]
[421604031,1777939839000,-190.53,0.00029137,7]
[421604032,1777939839000,-190.53,0.00029169,30]
[421604039,1777939839000,-2535.0440703,0.00043868,4]
[421604040,1777939839000,-247.15,0.0004558,120]
[421604033,1777939839000,-190.53,0.00029201,2]
[421604021,1777939839000,-2463.0,0.0004048,2]
[421604034,1777939839000,-190.66,0.00029232,7]
[421604035,1777939839000,-1345.59218495,0.0004348,2]
[421604038,1777939839000,-285.8,0.00025234,30]
[421604036,1777939839000,-1114.25402817,0.00043868,4]
[421604037,1777939839000,-401.89190153,0.00043868,4]
[421604042,1777939839000,-5691.26,0.0004558,120]
[421604043,1777939839000,-2430.99,0.0004558,120]
[421604041,1777939839000,-881.42,0.0004558,120]
[421604044,1777939839000,-2463.0,0.0004648,2]
[421604048,1777939839000,-856.82623455,0.00047699,120]
[421604046,1777939839000,-856.63,0.00047699,120]
[421604045,1777939839000,-212.87635569,0.00047699,120]
[421604047,1777939839000,-856.63,0.00047699,120]
[421603983,1777939839000,-500.0,0.00013699,2]
[421604030,1777939839000,-190.53,0.00029105,2]
[421604012,1777939839000,-305.837607,0.00030086,14]
[421603982,1777939839000,-500.0,0.00013699,2]
[421604015,1777939839000,-500.0,0.00035616,7]
[421603985,1777939839000,-500.0,0.00013699,2]
[421603986,1777939839000,-500.0,0.00013699,2]
[421603987,1777939839000,-500.0,0.00013699,2]
[421603990,1777939839000,-500.0,0.00013699,2]
[421604016,1777939839000,-500.0,0.00035616,7]
[421603991,1777939839000,-500.0,0.00013699,2]
[421604000,1777939839000,-190.53,0.00028756,7]
[421603996,1777939839000,-190.53,0.0002863,2]
[421603998,1777939839000,-190.53,0.00028693,30]
[421603997,1777939839000,-190.53,0.00028661,7]
[421603999,1777939839000,-190.53,0.00028725,2]
[421604001,1777939839000,-190.53,0.00028788,30]
[421604003,1777939839000,-190.53,0.0002882,2]
[421604004,1777939839000,-190.53,0.00028852,7]
[421603994,1777939839000,-500.0,0.00013699,2]
[421604007,1777939839000,-190.53,0.00028947,7]
[421603995,1777939839000,-581.58,0.00027397,10]
[421604014,1777939839000,-2463.0,0.0003448,2]
[421604017,1777939839000,-500.0,0.00035616,7]
[421604013,1777939839000,-2463.0,0.0003148,2]
[421604008,1777939839000,-190.53,0.00028979,30]
[421604011,1777939839000,-190.53,0.00029074,30]
[421604010,1777939839000,-190.53,0.00029042,7]
[421604018,1777939839000,-164.94121942,0.00035616,7]
[421604020,1777939839000,-2463.0,0.0003748,2]
[421604019,1777939839000,-500.0,0.00035616,7]
[421604009,1777939839000,-190.53,0.0002901,2]
[421604005,1777939839000,-190.53,0.00028883,30]
[421604006,1777939839000,-190.53,0.00028915,2]
[421604064,1777939840000,-500.0,0.00047699,120]
[421604055,1777939840000,-805.48,0.00047699,2]
[421604058,1777939840000,-500.0,0.00047699,120]
[421604063,1777939840000,-500.0,0.00047699,120]
[421604059,1777939840000,-500.0,0.00047699,120]
[421604057,1777939840000,-805.67112002,0.00047699,2]
[421604067,1777939840000,-500.0,0.00047699,120]
[421604052,1777939840000,-805.48,0.00047699,2]
[421604056,1777939840000,-805.48,0.00047699,2]
[421604050,1777939840000,-805.48,0.00047699,2]
[421604049,1777939840000,-805.48,0.00047699,2]
[421604051,1777939840000,-805.48,0.00047699,2]
[421604053,1777939840000,-805.48,0.00047699,2]
[421604054,1777939840000,-805.48,0.00047699,2]
[421604065,1777939840000,-500.0,0.00047699,120]
[421604066,1777939840000,-514.56240066,0.00047699,120]
[421604060,1777939840000,-500.0,0.00047699,120]
[421604062,1777939840000,-500.0,0.00047699,120]
[421604068,1777939840000,-500.0,0.00047699,120]
[421604061,1777939840000,-500.0,0.00047699,120]
[421604085,1777939840000,-276.99747719,0.000477,120]
[421604083,1777939840000,-200.24383556,0.00046048,2]
[421604081,1777939840000,-671.63300224,0.000477,120]
[421604082,1777939840000,-285.8,0.00025523,2]
[421604080,1777939840000,-1528.70657414,0.000477,120]
[421604078,1777939840000,-286.79533695,0.000477,120]
[421604075,1777939840000,-540.55517189,0.00047699,120]
[421604079,1777939840000,-486185.95916262,0.000477,120]
[421604072,1777939840000,-280.87,0.00047699,120]
[421604069,1777939840000,-500.0,0.00047699,120]
[421604084,1777939840000,-921.3361976,0.000477,120]
[421604076,1777939840000,-151.0,0.00047699,30]
[421604071,1777939840000,-500.0,0.00047699,120]
[421604073,1777939840000,-343.71312794,0.00047699,120]
[421604074,1777939840000,-500.0,0.00047699,120]
[421604070,1777939840000,-500.0,0.00047699,120]
[421604077,1777939840000,-547.0,0.00047699,60]
[421604097,1777939842000,-285.8,0.00026388,2]
[421604096,1777939842000,-285.8,0.00026099,30]
[421604095,1777939842000,-285.8,0.00025811,7]
[421604098,1777939842000,-285.8,0.00026676,7]
[421604100,1777939842000,-285.8,0.00027253,2]
[421604102,1777939842000,-285.8,0.0002783,30]
[421604101,1777939842000,-285.8,0.00027541,7]
[421604103,1777939842000,-190.77562172,0.00028118,2]
[421604099,1777939842000,-285.8,0.00026964,30]
[421604115,1777939845000,-285.9,0.00030136,7]
[421604106,1777939845000,-506.0,0.00027137,2]
[421604108,1777939845000,-285.8,0.00028406,7]
[421604112,1777939845000,-285.8,0.00029271,7]
[421604107,1777939845000,-95.02437828,0.00028118,2]
[421604114,1777939845000,-285.8,0.00029848,2]
[421604110,1777939845000,-506.0,0.00028899,3]
[421604113,1777939845000,-285.8,0.0002956,30]
[421604109,1777939845000,-285.8,0.00028695,30]
[421604111,1777939845000,-285.8,0.00028983,2]
[421604117,1777939845000,-506.0,0.00032423,7]
[421604123,1777939845000,-200.0,0.00045212,2]
[421604120,1777939845000,-506.0,0.0003771,13]
[421604116,1777939845000,-506.0,0.00030661,5]
[421604119,1777939845000,-506.0,0.00035947,11]
[421604124,1777939845000,-200.0,0.00046062,2]
[421604121,1777939845000,-506.0,0.00039472,15]
[421604125,1777939845000,-200.24383557,0.00046268,2]
[421604122,1777939845000,-165.9320718,0.00044899,22]
[421604126,1777939845000,-11889.3816432,0.000477,120]
[421604127,1777939845000,-4356.67713044,0.000477,120]
[421604128,1777939845000,-5618.91750136,0.000477,120]
[421604118,1777939845000,-506.0,0.00034185,9]
[421604129,1777939846000,-250.44,0.00041234,17]
[421604139,1777940766000,-4161.6239,0.00013398,2]
[421604140,1777940766000,-8733.6332,0.00013398,2]
[421604146,1777940766000,-500.0,0.00013497,2]
[421604141,1777940766000,-2500.0,0.00013398,2]
[421604143,1777940766000,-14831.17871877,0.00013435,2]
[421604144,1777940766000,-7108.19129939,0.00013435,2]
[421604145,1777940766000,-165.9320718,0.00013435,2]
[421604147,1777940766000,-150.0,0.00013497,2]
[421604138,1777940766000,-500.0,0.00013398,2]
[421604148,1777940766000,-500.0,0.00013497,2]
[421604142,1777940766000,-150.0,0.00013434,2]
[421604149,1777940766000,-342.96789508,0.00013497,2]
[421604150,1777940766000,-322.50526438,0.00013497,2]
[421604157,1777940766000,-500.0,0.00013497,2]
[421604158,1777940766000,-500.0,0.00013497,2]
[421604156,1777940766000,-500.0,0.00013497,2]
[421604159,1777940766000,-500.0,0.00013497,2]
[421604155,1777940766000,-500.0,0.00013497,2]
[421604152,1777940766000,-500.0,0.00013497,2]
[421604154,1777940766000,-252.89091526,0.00013497,2]
[421604151,1777940766000,-500.0,0.00013497,2]
[421604153,1777940766000,-500.0,0.00013497,2]
[421604167,1777940767000,-500.0,0.00013497,2]
[421604174,1777940767000,-500.0,0.00013497,2]
[421604170,1777940767000,-500.0,0.00013497,2]
[421604173,1777940767000,-500.0,0.00013497,2]
[421604172,1777940767000,-500.0,0.00013497,2]
[421604171,1777940767000,-500.0,0.00013497,2]
[421604169,1777940767000,-500.0,0.00013497,2]
[421604163,1777940767000,-500.0,0.00013497,2]
[421604164,1777940767000,-500.0,0.00013497,2]
[421604165,1777940767000,-500.0,0.00013497,2]
[421604166,1777940767000,-500.0,0.00013497,2]
[421604162,1777940767000,-500.0,0.00013497,2]
[421604177,1777940767000,-500.0,0.00013497,2]
[421604160,1777940767000,-500.0,0.00013497,2]
[421604161,1777940767000,-500.0,0.00013497,2]
[421604168,1777940767000,-500.0,0.00013497,2]
[421604176,1777940767000,-500.0,0.00013497,2]
[421604182,1777940767000,-500.0,0.00013497,2]
[421604180,1777940767000,-500.0,0.00013497,2]
[421604195,1777940767000,-500.0,0.00013497,2]
[421604192,1777940767000,-500.0,0.00013497,2]
[421604194,1777940767000,-500.0,0.00013497,2]
[421604188,1777940767000,-500.0,0.00013497,2]
[421604191,1777940767000,-500.0,0.00013497,2]
[421604190,1777940767000,-500.0,0.00013497,2]
[421604189,1777940767000,-500.0,0.00013497,2]
[421604187,1777940767000,-500.0,0.00013497,2]
[421604193,1777940767000,-500.0,0.00013497,2]
[421604186,1777940767000,-500.0,0.00013497,2]
[421604184,1777940767000,-500.0,0.00013497,2]
[421604175,1777940767000,-500.0,0.00013497,2]
[421604183,1777940767000,-500.0,0.00013497,2]
[421604181,1777940767000,-500.0,0.00013497,2]
[421604179,1777940767000,-500.0,0.00013497,2]
[421604178,1777940767000,-500.0,0.00013497,2]
[421604185,1777940767000,-500.0,0.00013497,2]
[421604211,1777940768000,-500.0,0.00013497,2]
[421604209,1777940768000,-500.0,0.00013497,2]
[421604208,1777940768000,-500.0,0.00013497,2]
[421604207,1777940768000,-500.0,0.00013497,2]
[421604206,1777940768000,-500.0,0.00013497,2]
[421604204,1777940768000,-500.0,0.00013497,2]
[421604203,1777940768000,-500.0,0.00013497,2]
[421604202,1777940768000,-500.0,0.00013497,2]
[421604200,1777940768000,-500.0,0.00013497,2]
[421604199,1777940768000,-500.0,0.00013497,2]
[421604201,1777940768000,-500.0,0.00013497,2]
[421604197,1777940768000,-500.0,0.00013497,2]
[421604196,1777940768000,-500.0,0.00013497,2]
[421604212,1777940768000,-500.0,0.00013497,2]
[421604205,1777940768000,-500.0,0.00013497,2]
[421604210,1777940768000,-500.0,0.00013497,2]
[421604198,1777940768000,-500.0,0.00013497,2]
[421604215,1777940768000,-500.0,0.00013497,2]
[421604228,1777940768000,-500.0,0.00013497,2]
[421604230,1777940768000,-500.0,0.00013497,2]
[421604229,1777940768000,-500.0,0.00013497,2]
[421604227,1777940768000,-500.0,0.00013497,2]
[421604225,1777940768000,-500.0,0.00013497,2]
[421604224,1777940768000,-500.0,0.00013497,2]
[421604214,1777940768000,-500.0,0.00013497,2]
[421604221,1777940768000,-500.0,0.00013497,2]
[421604226,1777940768000,-500.0,0.00013497,2]
[421604222,1777940768000,-500.0,0.00013497,2]
[421604220,1777940768000,-500.0,0.00013497,2]
[421604219,1777940768000,-500.0,0.00013497,2]
[421604217,1777940768000,-311.59637212,0.00013497,2]
[421604218,1777940768000,-500.0,0.00013497,2]
[421604216,1777940768000,-500.0,0.00013497,2]
[421604213,1777940768000,-500.0,0.00013497,2]
[421604223,1777940768000,-500.0,0.00013497,2]
[421604231,1777940769000,-500.0,0.00013497,2]
[421604233,1777940769000,-500.0,0.00013497,2]
[421604232,1777940769000,-500.0,0.00013497,2]
[421604234,1777940782000,-961631.2972,0.00013498,2]
[421604236,1777940782000,-500.0,0.00013698,2]
[421604235,1777940782000,-5000.0,0.00013535,2]
[421604238,1777940783000,-330.28911157,0.00013698,2]
[421604252,1777940783000,-500.0,0.00013699,2]
[421604251,1777940783000,-500.0,0.00013699,2]
[421604250,1777940783000,-500.0,0.00013699,2]
[421604253,1777940783000,-500.0,0.00013699,2]
[421604247,1777940783000,-500.0,0.00013699,2]
[421604248,1777940783000,-500.0,0.00013699,2]
[421604246,1777940783000,-500.0,0.00013699,2]
[421604245,1777940783000,-500.0,0.00013699,2]
[421604244,1777940783000,-500.0,0.00013699,2]
[421604242,1777940783000,-3717.99,0.00013699,2]
[421604240,1777940783000,-212.0522951,0.00013698,2]
[421604241,1777940783000,-9999.99,0.00013699,2]
[421604239,1777940783000,-500.0,0.00013698,2]
[421604237,1777940783000,-500.0,0.00013698,2]
[421604243,1777940783000,-150.99,0.00013699,2]
[421604254,1777940783000,-500.0,0.00013699,2]
[421604249,1777940783000,-500.0,0.00013699,2]
[421604256,1777940783000,-500.0,0.00013699,2]
[421604255,1777940783000,-500.0,0.00013699,2]
[421604272,1777940783000,-500.0,0.00013699,2]
[421604270,1777940783000,-500.0,0.00013699,2]
[421604271,1777940783000,-500.0,0.00013699,2]
[421604269,1777940783000,-500.0,0.00013699,2]
[421604268,1777940783000,-500.0,0.00013699,2]
[421604266,1777940783000,-500.0,0.00013699,2]
[421604265,1777940783000,-500.0,0.00013699,2]
[421604267,1777940783000,-500.0,0.00013699,2]
[421604263,1777940783000,-500.0,0.00013699,2]
[421604261,1777940783000,-500.0,0.00013699,2]
[421604262,1777940783000,-500.0,0.00013699,2]
[421604258,1777940783000,-500.0,0.00013699,2]
[421604259,1777940783000,-313.20925965,0.00013699,2]
[421604260,1777940783000,-500.0,0.00013699,2]
[421604264,1777940783000,-500.0,0.00013699,2]
[421604257,1777940783000,-500.0,0.00013699,2]
[421604274,1777940784000,-533.30199868,0.00013699,2]
[421604273,1777940784000,-500.0,0.00013699,2]
[421604275,1777940784000,-500.0,0.00013699,2]
[421604276,1777940784000,-500.0,0.00013699,2]
[421604277,1777940784000,-500.0,0.00013699,2]
[421604280,1777940784000,-500.0,0.00013699,2]
[421604281,1777940784000,-168.86785857,0.00013699,2]
[421604279,1777940784000,-168.86785857,0.00013699,2]
[421604278,1777940784000,-500.0,0.00013699,2]
[421604286,1777940784000,-500.0,0.00013699,2]
[421604282,1777940784000,-500.0,0.00013699,2]
[421604291,1777940784000,-168.86785857,0.00013699,2]
[421604290,1777940784000,-500.0,0.00013699,2]
[421604287,1777940784000,-168.86785857,0.00013699,2]
[421604283,1777940784000,-168.86785857,0.00013699,2]
[421604289,1777940784000,-168.86785857,0.00013699,2]
[421604285,1777940784000,-500.0,0.00013699,2]
[421604288,1777940784000,-500.0,0.00013699,2]
[421604284,1777940784000,-168.86785857,0.00013699,2]
[421604294,1777940831000,-300.0,0.00014664,2]
[421604293,1777940831000,-300.0,0.00014664,2]
[421604296,1777940831000,-300.0,0.00014737,2]
[421604295,1777940831000,-500.0,0.00014737,2]
[421604299,1777940831000,-300.0,0.00014738,2]
[421604300,1777940831000,-4323.49683135,0.00015,2]
[421604297,1777940831000,-5000.0,0.00014738,2]
[421604298,1777940831000,-195.78929784,0.00014738,2]
[421604301,1777940869000,-2500.0,0.00013398,2]
[421604306,1777940869000,-1782593.39853229,0.00015,2]
[421604304,1777940869000,-500.0,0.00013698,2]
[421604305,1777940869000,-150.80467489,0.00013698,2]
[421604303,1777940869000,-500.0,0.00013698,2]
[421604302,1777940869000,-500.0,0.00013698,2]
[421604307,1777940880000,213255.79679282,0.00013397,2]
[421604310,1777940954000,4131.94573566,0.00010682,2]
[421604317,1777941031000,-516.80872837,0.00012,2]
[421604316,1777941031000,-58135.20105806,0.00012,2]
[421604315,1777941031000,-2295.0,0.00012,2]
[421604321,1777941032000,-4536.25924551,0.00012,2]
[421604318,1777941032000,-575.75368507,0.00011999,2]
[421604320,1777941032000,-4545.33374453,0.00012,2]
[421604319,1777941032000,-240.07752656,0.00011999,2]
[421604345,1777941037000,-500.0,0.00011999,2]
[421604344,1777941037000,-500.0,0.00011999,2]
[421604346,1777941037000,-500.0,0.00011999,2]
[421604350,1777941037000,-500.0,0.00011999,2]
[421604349,1777941037000,-500.0,0.00011999,2]
[421604347,1777941037000,-500.0,0.00011999,2]
[421604348,1777941037000,-500.0,0.00011999,2]
[421604352,1777941037000,-500.0,0.00011999,2]
[421604354,1777941037000,-500.0,0.00011999,2]
[421604355,1777941037000,-19628.72984865,0.00012,2]
[421604353,1777941037000,-182.44812301,0.00011999,2]
[421604351,1777941037000,-500.0,0.00011999,2]
[421604371,1777941038000,-500.0,0.00013699,2]
[421604368,1777941038000,-500.0,0.00013699,2]
[421604374,1777941038000,-500.0,0.00013699,2]
[421604373,1777941038000,-500.0,0.00013699,2]
[421604370,1777941038000,-500.0,0.00013699,2]
[421604375,1777941038000,-500.0,0.00013699,2]
[421604369,1777941038000,-500.0,0.00013699,2]
[421604376,1777941038000,-500.0,0.00013699,2]
[421604367,1777941038000,-500.0,0.00013699,2]
[421604372,1777941038000,-500.0,0.00013699,2]
[421604358,1777941038000,-2528.48506424,0.00012,2]
[421604366,1777941038000,-500.0,0.00013699,2]
[421604365,1777941038000,-6397.37216946,0.00013599,2]
[421604363,1777941038000,-889690.35090718,0.00013397,2]
[421604361,1777941038000,-5404.36435328,0.0001305,2]
[421604362,1777941038000,-1845.1944,0.00013297,2]
[421604360,1777941038000,-310.76834612,0.000125,2]
[421604359,1777941038000,-447250.21201833,0.00012,2]
[421604356,1777941038000,-1048.02402994,0.00012,2]
[421604389,1777941038000,-500.0,0.00013699,2]
[421604357,1777941038000,-547.4565743,0.00012,2]
[421604364,1777941038000,-1000.0,0.000135,2]
[421604377,1777941038000,-500.0,0.00013699,2]
[421604381,1777941038000,-500.0,0.00013699,2]
[421604388,1777941038000,-500.0,0.00013699,2]
[421604379,1777941038000,-500.0,0.00013699,2]
[421604404,1777941038000,-599.55869657,0.00017,2]
[421604399,1777941038000,-151.0,0.00016699,2]
[421604398,1777941038000,-4438.54635438,0.000165,2]
[421604397,1777941038000,-4944.86871757,0.00015,2]
[421604400,1777941038000,-151.0,0.00016699,2]
[421604396,1777941038000,-10435.92925821,0.0001439,2]
[421604395,1777941038000,-500.0,0.00013699,2]
[421604402,1777941038000,-230.60522689,0.00016699,2]
[421604392,1777941038000,-500.0,0.00013699,2]
[421604383,1777941038000,-500.0,0.00013699,2]
[421604401,1777941038000,-151.0,0.00016699,2]
[421604394,1777941038000,-500.0,0.00013699,2]
[421604393,1777941038000,-500.0,0.00013699,2]
[421604391,1777941038000,-500.0,0.00013699,2]
[421604380,1777941038000,-500.0,0.00013699,2]
[421604386,1777941038000,-500.0,0.00013699,2]